fUST/lending_fUST_20260329
["ID","MTS","AMOUNT","RATE_DAILY","PERIOD"]
[419031962,1774788643822,-677.829436,0.000178,2]
[419031963,1774788643832,-537.0,0.000178,2]
[419031964,1774788643842,-981.28,0.00017808,2]
[419031965,1774788643852,-557.5788265,0.00017855,2]
[419031966,1774788643862,-1535.17,0.00017872,2]
[419031967,1774788643872,-615.29,0.00017872,2]
[419031968,1774788643882,-2097.61,0.00017872,2]
[419031969,1774788643893,-732.9,0.00017872,2]
[419031970,1774788643903,-500.0,0.00017872,2]
[419031971,1774788643913,-1535.17,0.00017899,2]
[419031972,1774788643923,-1535.17,0.00017899,2]
[419031973,1774788643934,-1535.17,0.00017899,2]
[419031974,1774788643944,-615.29,0.00017899,2]
[419031975,1774788643954,-615.29,0.00017899,2]
[419031976,1774788643964,-615.29,0.00017899,2]
[419031977,1774788643974,-2097.61,0.00017899,2]
[419031978,1774788643984,-2097.61,0.00017899,2]
[419031979,1774788643993,-2097.61,0.00017899,2]
[419031980,1774788644003,-732.9,0.00017899,2]
[419031981,1774788644013,-732.9,0.00017899,2]
[419031982,1774788644023,-732.9,0.00017899,2]
[419031983,1774788644035,-500.0,0.00017899,2]
[419031984,1774788644045,-500.0,0.00017899,2]
[419031985,1774788644055,-500.0,0.00017899,2]
[419031986,1774788644066,-200.0,0.00017899,2]
[419031987,1774788644076,-50149.0,0.000179,2]
[419031988,1774788644086,-151.0,0.000179,2]
[419031989,1774788644096,-151.0,0.000179,2]
[419031990,1774788644106,-524.28439082,0.000179,2]
[419031991,1774788644115,-200.0,0.00017901,2]
[419031992,1774788644125,-1535.17,0.00017902,2]
[419031993,1774788644135,-1535.17,0.00017902,2]
[419031994,1774788644227,-1535.17,0.00017902,2]
[419031995,1774788644239,-1535.17,0.00017902,2]
[419031996,1774788644249,-1535.17,0.00017902,2]
[419031998,1774788644259,-1535.17,0.00017902,2]
[419032000,1774788644268,-1535.17,0.00017902,2]
[419032002,1774788644278,-1535.17,0.00017902,2]
[419032003,1774788644287,-1535.23065275,0.00017902,2]
[419032004,1774788644297,-615.29,0.00017902,2]
[419032005,1774788644308,-615.29,0.00017902,2]
[419032006,1774788644319,-615.29,0.00017902,2]
[419032007,1774788644329,-615.29,0.00017902,2]
[419032008,1774788644339,-615.29,0.00017902,2]
[419032009,1774788644349,-615.29,0.00017902,2]
[419032010,1774788644359,-615.29,0.00017902,2]
[419032011,1774788644369,-615.29,0.00017902,2]
[419032012,1774788644379,-615.35425751,0.00017902,2]
[419032013,1774788644389,-2097.61,0.00017902,2]
[419032014,1774788644399,-2097.61,0.00017902,2]
[419032015,1774788644409,-2097.61,0.00017902,2]
[419032016,1774788644418,-2097.61,0.00017902,2]
[419032017,1774788644428,-2097.61,0.00017902,2]
[419032018,1774788644437,-2097.61,0.00017902,2]
[419032019,1774788644448,-2097.61,0.00017902,2]
[419032020,1774788644458,-2097.61,0.00017902,2]
[419032021,1774788644468,-2097.68411689,0.00017902,2]
[419032022,1774788644478,-732.9,0.00017902,2]
[419032023,1774788644488,-732.9,0.00017902,2]
[419032024,1774788644497,-732.9,0.00017902,2]
[419032025,1774788644507,-732.9,0.00017902,2]
[419032026,1774788644517,-732.9,0.00017902,2]
[419032027,1774788644527,-732.9,0.00017902,2]
[419032028,1774788644538,-732.9,0.00017902,2]
[419032029,1774788644548,-732.9,0.00017902,2]
[419032030,1774788644558,-732.94650451,0.00017902,2]
[419032031,1774788644567,-500.0,0.00017902,2]
[419032032,1774788644577,-500.0,0.00017902,2]
[419032033,1774788644587,-500.0,0.00017902,2]
[419032034,1774788644597,-500.0,0.00017902,2]
[419032035,1774788644606,-500.0,0.00017902,2]
[419032036,1774788644616,-500.0,0.00017902,2]
[419032037,1774788644627,-207.52588258,0.00017902,2]
[419032038,1774788644638,-276.03052671,0.00017902,2]
[419032039,1774788644647,-151.0,0.00017902,2]
[419032040,1774788644658,-151.0,0.00017902,2]
[419032041,1774788644668,-151.0,0.00017902,2]
[419032042,1774788644678,-151.875933,0.00017902,2]
[419032043,1774788644687,-677.829436,0.00017902,2]
[419032044,1774788644697,-677.829436,0.00017902,2]
[419032045,1774788644707,-677.829436,0.00017902,2]
[419032046,1774788644718,-677.829436,0.00017902,2]
[419032047,1774788644727,-151.0,0.00017903,2]
[419032048,1774788644738,-151.0,0.00017903,2]
[419032049,1774788644747,-151.0,0.00017903,2]
[419032050,1774788644758,-151.0,0.00017903,2]
[419032051,1774788644768,-151.0,0.00017903,2]
[419032052,1774788644778,-151.0,0.00017903,2]
[419032053,1774788644789,-578.20924308,0.0001791,2]
[419032054,1774788644799,-599.60298507,0.00017965,2]
[419032055,1774788644809,-203.27435815,0.00017973,2]
[419032056,1774788644819,-165.10786794,0.00017973,2]
[419032057,1774788644829,-1341.0,0.00017993,2]
[419032058,1774788644839,-621.78829552,0.0001802,2]
[419032059,1774788644849,-173.544161,0.00018025,2]
[419032060,1774788644859,-151.4079762,0.00018028,2]
[419032061,1774788644868,-151.0,0.00018028,2]
[419032062,1774788644880,-324.8434484,0.00018028,2]
[419032063,1774788644889,-324.8434484,0.00018028,2]
[419032064,1774788644899,-324.8434484,0.00018028,2]
[419032065,1774788644909,-455.0679627,0.00018028,2]
[419032066,1774788644919,-324.8434486,0.00018028,2]
[419032067,1774788644929,-324.8434484,0.00018028,2]
[419032068,1774788644939,-324.8434486,0.00018028,2]
[419032069,1774788644949,-324.8434484,0.00018028,2]
[419032070,1774788644959,-324.8434484,0.00018028,2]
[419032071,1774788644968,-455.0679627,0.00018028,2]
[419032072,1774788644978,-644.79446246,0.00018075,2]
[419032073,1774788644988,-711.2,0.00018091,2]
[419032074,1774788644997,-1000.0,0.00018121,2]
[419032075,1774788645007,-763.53503449,0.00018121,2]
[419032076,1774788645017,-1003.27642418,0.00018121,2]
[419032077,1774788645026,-337.78216738,0.00018121,2]
[419032078,1774788645036,-1000.0,0.00018121,2]
[419032079,1774788645046,-1000.0,0.00018121,2]
[419032080,1774788645056,-250.0,0.00018121,2]
[419032081,1774788645066,-668.65185757,0.0001813,2]
[419032082,1774788645076,-1259.84173044,0.0001817,2]
[419032083,1774788645087,-693.3919763,0.00018185,2]
[419032084,1774788645097,-677.829436,0.000182,2]
[419032085,1774788645107,-677.829436,0.000182,2]
[419032086,1774788645117,-677.829436,0.000182,2]
[419032087,1774788645127,-677.829436,0.000182,2]
[419032088,1774788645137,-151.0,0.000182,2]
[419032089,1774788645147,-1000.0,0.00018221,2]
[419032090,1774788645157,-1000.0,0.00018221,2]
[419032091,1774788645167,-1000.0,0.00018221,2]
[419032092,1774788645177,-1000.0,0.00018221,2]
[419032093,1774788645186,-1000.0,0.00018221,2]
[419032094,1774788645196,-1000.0,0.00018221,2]
[419032095,1774788645205,-1000.0,0.00018221,2]
[419032096,1774788645215,-1000.0,0.00018221,2]
[419032097,1774788645225,-1000.0,0.00018221,2]
[419032098,1774788645235,-469.25725294,0.00018221,2]
[419032099,1774788645246,-658.7963547,0.00018221,2]
[419032100,1774788645255,-1000.0,0.00018221,2]
[419032101,1774788645265,-895.73260466,0.00018229,2]
[419032102,1774788645274,-719.04747942,0.0001824,2]
[419032103,1774788645284,-514.07135586,0.00018283,2]
[419032104,1774788645293,-745.65223616,0.00018295,2]
[419032105,1774788645303,-151.0,0.000183,2]
[419032106,1774788645313,-1000.0,0.00018321,2]
[419032107,1774788645323,-1000.0,0.00018321,2]
[419032108,1774788645334,-620.27509081,0.00018321,2]
[419032109,1774788645345,-1000.0,0.00018321,2]
[419032110,1774788645354,-305.62806928,0.00018321,2]
[419032111,1774788645364,-1000.0,0.00018321,2]
[419032112,1774788645374,-926.03015484,0.00018321,2]
[419032113,1774788645384,-1000.0,0.00018321,2]
[419032114,1774788645394,-1053.26386506,0.00018321,2]
[419032115,1774788645404,-1000.0,0.00018321,2]
[419032116,1774788645414,-1000.0,0.00018321,2]
[419032117,1774788645424,-1000.0,0.00018321,2]
[419032118,1774788645433,-1000.0,0.00018321,2]
[419032119,1774788645442,-1000.0,0.00018321,2]
[419032120,1774788645452,-1000.0,0.00018321,2]
[419032121,1774788645462,-1000.0,0.00018321,2]
[419032122,1774788645472,-1000.0,0.00018321,2]
[419032123,1774788645482,-1000.0,0.00018321,2]
[419032124,1774788645491,-1000.0,0.00018321,2]
[419032125,1774788645501,-1000.0,0.00018321,2]
[419032126,1774788645511,-1000.0,0.00018321,2]
[419032127,1774788645521,-950.28017904,0.00018321,2]
[419032128,1774788645531,-1000.0,0.00018321,2]
[419032129,1774788645541,-1000.0,0.00018321,2]
[419032130,1774788645551,-250.0,0.00018321,2]
[419032131,1774788645561,-1000.0,0.00018321,2]
[419032132,1774788645571,-1000.0,0.00018321,2]
[419032133,1774788645581,-1000.0,0.00018321,2]
[419032134,1774788645591,-1000.0,0.00018321,2]
[419032135,1774788645601,-1000.0,0.00018321,2]
[419032136,1774788645611,-1115.88784267,0.00018321,2]
[419032137,1774788645621,-1000.0,0.00018321,2]
[419032138,1774788645632,-1000.0,0.00018321,2]
[419032139,1774788645642,-1000.0,0.00018321,2]
[419032140,1774788645652,-557.5788265,0.00018348,2]
[419032141,1774788645663,-500.0,0.00018348,2]
[419032142,1774788645673,-2230.315306,0.00018348,2]
[419032143,1774788645684,-773.2413689,0.0001835,2]
[419032144,1774788645695,-500.0,0.00018373,2]
[419032145,1774788645705,-500.0,0.00018373,2]
[419032146,1774788645715,-500.0,0.00018373,2]
[419032147,1774788645726,-500.0,0.00018373,2]
[419032148,1774788645735,-500.0,0.00018373,2]
[419032149,1774788645745,-500.0,0.00018373,2]
[419032150,1774788645755,-500.0,0.00018373,2]
[419032151,1774788645765,-500.0,0.00018373,2]
[419032152,1774788645775,-500.0,0.00018373,2]
[419032153,1774788645784,-151.0,0.00018373,2]
[419032154,1774788645795,-151.0,0.00018373,2]
[419032155,1774788645805,-151.0,0.00018383,2]
[419032156,1774788645815,-151.0,0.00018383,2]
[419032157,1774788645825,-158.859943,0.00018383,2]
[419032158,1774788645834,-151.0,0.00018383,2]
[419032159,1774788645844,-151.0,0.00018383,2]
[419032160,1774788645854,-151.0,0.00018383,2]
[419032161,1774788645864,-151.0,0.00018383,2]
[419032162,1774788645874,-151.0,0.000184,2]
[419032163,1774788645884,-801.85129955,0.00018405,2]
[419032164,1774788645894,-2692.81057904,0.00018408,2]
[419032165,1774788645904,-800.0,0.00018469,2]
[419032166,1774788645914,-909.98134562,0.00018515,2]
[419032167,1774788645923,-250.0,0.00018521,2]
[419032168,1774788645933,-250.0,0.00018521,2]
[419032169,1774788645955,-500.0,0.00018523,2]
[419032170,1774788645966,-800.0,0.00018524,2]
[419032171,1774788645976,-711.2,0.00018541,2]
[419032172,1774788645986,-500.0,0.00018543,2]
[419032173,1774788645996,-800.0,0.00018546,2]
[419032174,1774788646006,-800.0,0.00018566,2]
[419032175,1774788646017,-151.0,0.000186,2]
[419032176,1774788646027,-151.0,0.000186,2]
[419032177,1774788646037,-500.0,0.00018624,2]
[419032178,1774788646047,-1500.0,0.00018668,2]
[419032180,1774788646057,-1189.44935464,0.00018668,2]
[419032182,1774788646067,-1500.0,0.00018668,2]
[419032184,1774788646077,-350.0,0.00018668,2]
[419032185,1774788646087,-154.0,0.00018684,2]
[419032186,1774788646097,-154.0,0.00018684,2]
[419032187,1774788646107,-154.0,0.00018684,2]
[419032188,1774788646118,-154.0,0.00018684,2]
[419032189,1774788646127,-184.56381677,0.00018684,2]
[419032190,1774788646260,-646.0,0.00018684,2]
[419032191,1774788646271,-646.0,0.00018684,2]
[419032192,1774788646281,-646.0,0.00018684,2]
[419032193,1774788646290,-646.0,0.00018684,2]
[419032194,1774788646300,-646.0,0.00018684,2]
[419032195,1774788646310,-646.0,0.00018684,2]
[419032196,1774788646320,-646.0,0.00018684,2]
[419032197,1774788646330,-646.0,0.00018684,2]
[419032198,1774788646339,-646.0,0.00018684,2]
[419032199,1774788646349,-183.12053937,0.00018684,2]
[419032200,1774788646359,-151.0,0.00018684,2]
[419032201,1774788646370,-151.0,0.00018684,2]
[419032202,1774788646381,-151.0,0.00018684,2]
[419032203,1774788646391,-151.0,0.00018684,2]
[419032204,1774788646401,-151.0,0.00018684,2]
[419032205,1774788646411,-151.0,0.00018684,2]
[419032206,1774788646420,-151.0,0.00018684,2]
[419032207,1774788646430,-151.0,0.00018684,2]
[419032208,1774788646440,-151.0,0.00018684,2]
[419032209,1774788646451,-151.0,0.00018684,2]
[419032210,1774788646460,-151.0,0.00018684,2]
[419032211,1774788646470,-151.0,0.00018684,2]
[419032212,1774788646480,-151.0,0.00018684,2]
[419032213,1774788646490,-151.0,0.00018684,2]
[419032214,1774788646500,-151.0,0.00018684,2]
[419032216,1774788646511,-151.0,0.00018684,2]
[419032218,1774788646521,-151.0,0.00018684,2]
[419032220,1774788646531,-151.0,0.00018684,2]
[419032221,1774788646541,-151.0,0.00018684,2]
[419032222,1774788646551,-151.0,0.00018684,2]
[419032223,1774788646561,-151.0,0.00018684,2]
[419032224,1774788646571,-151.0,0.00018684,2]
[419032225,1774788646581,-151.0,0.00018684,2]
[419032226,1774788646591,-151.0,0.00018684,2]
[419032227,1774788646601,-151.0,0.00018684,2]
[419032228,1774788646611,-151.0,0.00018684,2]
[419032229,1774788646622,-151.0,0.00018684,2]
[419032230,1774788646633,-151.0,0.00018684,2]
[419032231,1774788646643,-151.0,0.00018684,2]
[419032232,1774788646652,-151.0,0.00018684,2]
[419032234,1774788646662,-151.0,0.00018684,2]
[419032235,1774788646672,-151.0,0.00018684,2]
[419032236,1774788646682,-296.22923724,0.00018684,2]
[419032237,1774788646693,-151.0,0.00018684,2]
[419032238,1774788646703,-151.0,0.00018684,2]
[419032239,1774788646712,-151.0,0.00018684,2]
[419032240,1774788646722,-151.0,0.00018684,2]
[419032241,1774788646732,-151.0,0.00018684,2]
[419032242,1774788646743,-151.0,0.00018684,2]
[419032243,1774788646753,-151.0,0.00018684,2]
[419032244,1774788646763,-151.0,0.00018684,2]
[419032245,1774788646773,-151.0,0.00018684,2]
[419032246,1774788646783,-188.65657842,0.00018684,2]
[419032247,1774788646793,-500.0,0.00018691,2]
[419032248,1774788646804,-160.0,0.000187,5]
[419032249,1774788646814,-210.74,0.00018747,2]
[419032250,1774788646823,-500.0,0.00018759,2]
[419032251,1774788646833,-500.0,0.00018765,2]
[419032252,1774788646843,-1104.42208699,0.00018768,2]
[419032253,1774788646853,-1500.0,0.00018768,2]
[419032254,1774788646863,-1500.0,0.00018768,2]
[419032255,1774788646873,-891.94741264,0.00018768,2]
[419032256,1774788646883,-1500.0,0.00018768,2]
[419032257,1774788646893,-1178.46447623,0.00018768,2]
[419032258,1774788646903,-1500.0,0.00018768,2]
[419032259,1774788646912,-1500.0,0.00018768,2]
[419032260,1774788646922,-1400.54497951,0.00018768,2]
[419032261,1774788646930,-1500.0,0.00018768,2]
[419032262,1774788646940,-438.88,0.00018784,3]
[419032263,1774788646949,-500.0,0.00018787,2]
[419032264,1774788646959,-151.0,0.000188,2]
[419032265,1774788646969,-86329.34336591,0.0001881,2]
[419032266,1774788646979,-175.65345189,0.00018815,7]
[419032267,1774788646989,-455.0679627,0.0001885,2]
[419032268,1774788646999,-455.0909562,0.0001885,2]
[419032269,1774788647008,-455.0679627,0.0001885,2]
[419032270,1774788647017,-324.8434484,0.0001885,2]
[419032271,1774788647027,-455.0679627,0.0001885,2]
[419032272,1774788647036,-324.8434484,0.0001885,2]
[419032273,1774788647046,-324.8434484,0.0001885,2]
[419032274,1774788647056,-455.0679627,0.0001885,2]
[419032275,1774788647065,-324.8434484,0.0001885,2]
[419032276,1774788647075,-324.8434484,0.0001885,2]
[419032277,1774788647085,-324.8434484,0.0001885,2]
[419032278,1774788647095,-324.8434484,0.0001885,2]
[419032279,1774788647105,-455.0679627,0.0001885,2]
[419032280,1774788647115,-455.0679627,0.0001885,2]
[419032281,1774788647125,-324.8434484,0.0001885,2]
[419032282,1774788647134,-324.8434484,0.0001885,2]
[419032283,1774788647143,-455.0679627,0.0001885,2]
[419032285,1774788647153,-222.2090796,0.0001885,2]
[419032287,1774788647162,-455.0679627,0.0001885,2]
[419032289,1774788647171,-600.0,0.00018853,2]
[419032290,1774788647182,-1500.0,0.00018868,2]
[419032291,1774788647191,-1500.0,0.00018868,2]
[419032292,1774788647201,-1500.0,0.00018868,2]
[419032293,1774788647211,-1500.0,0.00018868,2]
[419032294,1774788647221,-1500.0,0.00018868,2]
[419032295,1774788647230,-1500.0,0.00018868,2]
[419032296,1774788647240,-1500.0,0.00018868,2]
[419032297,1774788647250,-1500.0,0.00018868,2]
[419032298,1774788647261,-1500.0,0.00018868,2]
[419032299,1774788647270,-461.39782629,0.00018868,2]
[419032300,1774788647280,-1500.0,0.00018868,2]
[419032301,1774788647290,-1500.0,0.00018868,2]
[419032302,1774788647300,-1500.0,0.00018868,2]
[419032303,1774788647310,-1500.0,0.00018868,2]
[419032304,1774788647320,-1500.0,0.00018868,2]
[419032305,1774788647330,-1500.0,0.00018868,2]
[419032306,1774788647340,-1500.0,0.00018868,2]
[419032307,1774788647349,-1500.0,0.00018868,2]
[419032308,1774788647359,-1500.0,0.00018868,2]
[419032309,1774788647369,-350.0,0.00018868,2]
[419032310,1774788647379,-1500.0,0.00018868,2]
[419032311,1774788647389,-1500.0,0.00018868,2]
[419032312,1774788647399,-1500.0,0.00018868,2]
[419032313,1774788647408,-1500.0,0.00018868,2]
[419032314,1774788647419,-1500.0,0.00018868,2]
[419032315,1774788647428,-1635.57709254,0.00018868,2]
[419032316,1774788647439,-1500.0,0.00018868,2]
[419032317,1774788647451,-1500.0,0.00018868,2]
[419032318,1774788647460,-350.34735365,0.0001888,30]
[419032319,1774788647470,-173.544161,0.00018883,2]
[419032320,1774788647480,-500.0,0.00018896,2]
[419032321,1774788647490,-2312.83697232,0.00018896,2]
[419032322,1774788647499,-4686.17949826,0.000189,2]
[419032323,1774788647509,-1000.0,0.00018921,2]
[419032324,1774788647519,-1000.0,0.00018921,2]
[419032325,1774788647529,-1000.0,0.00018921,2]
[419032326,1774788647539,-1000.0,0.00018921,2]
[419032327,1774788647549,-1125.90210725,0.00018921,2]
[419032328,1774788647558,-1000.0,0.00018921,2]
[419032329,1774788647568,-1000.0,0.00018921,2]
[419032330,1774788647577,-1000.0,0.00018921,2]
[419032331,1774788647586,-1000.0,0.00018921,2]
[419032332,1774788647595,-151.0,0.00018921,2]
[419032333,1774788647605,-151.0,0.00018921,2]
[419032334,1774788647615,-151.0,0.0001894,2]
[419032335,1774788647624,-151.0,0.0001894,2]
[419032336,1774788647634,-151.0,0.0001894,2]
[419032337,1774788647644,-190.749501,0.0001894,2]
[419032338,1774788647653,-711.2,0.00018991,2]
[419032339,1774788647663,-500.0,0.00018994,2]
[419032340,1774788647673,-1498635.96307985,0.00019,2]
[419032341,1774788647801,-17561.65482841,0.00019,2]
[419032342,1774788647814,-4079.5963172,0.00019,2]
[419032343,1774788647905,-5591.05590275,0.00019,2]
[419032344,1774788647917,-418.6,0.00019,2]
[419032345,1774788648078,-455.0679627,0.00018028,2]
[419032346,1774788648088,-1750.57130991,0.00019,2]
[419032347,1774788648100,-298.84574358,0.00019,2]
[419032348,1774788648112,-354.69225279,0.00019,2]
[419032349,1774788648123,-5048.68450367,0.00019,2]
[419032350,1774788648142,-650.81921387,0.00019,2]
[419032351,1774788648154,-30849.22909771,0.00019,2]
[419032352,1774788648165,-11454.22642804,0.00019,2]
[419032353,1774788648177,-975.0,0.00019,2]
[419032354,1774788648189,-558.0,0.00019,2]
[419032355,1774788648200,-699.07197747,0.00019,2]
[419032356,1774788648309,-1001.825555,0.00016,2]
[419032357,1774788648319,-1000.0,0.000165,2]
[419032358,1774788648328,-1000.0,0.00017,2]
[419032359,1774788648339,-1000.0,0.000175,2]
[419032360,1774788648348,-1000.0,0.00018,2]
[419032361,1774788648358,-1000.0,0.000185,2]
[419032362,1774788648367,-9808.70839727,0.00019,2]
[419032363,1774788648391,-2622.64286137,0.00019,2]
[419032364,1774788648403,-792.16709817,0.00019,2]
[419032365,1774788648415,-3945.45875983,0.00019,2]
[419032366,1774788648428,-11317.58831437,0.00019,2]
[419032367,1774788648440,-1256.57903976,0.00019,2]
[419032368,1774788648451,-384.14869177,0.00019,2]
[419032369,1774788648463,-7400.94457519,0.00019,2]
[419032370,1774788648475,-1332.33351481,0.00019,2]
[419032371,1774788648486,-21071.28597997,0.00019,2]
[419032372,1774788648497,-18500.32325451,0.00019,2]
[419032373,1774788648508,-6252.06902578,0.00019,2]
[419032374,1774788648520,-6634.99239442,0.00019,2]
[419032375,1774788648593,-6006.64888033,0.00019,2]
[419032376,1774788648605,-799.65154018,0.00019,2]
[419032377,1774788648618,-414.3965,0.00019,2]
[419032378,1774788648629,-5142.0,0.00019,2]
[419032379,1774788648641,-11502.16334037,0.00019,2]
[419032380,1774788648653,-494.293216,0.00019,2]
[419032381,1774788648664,-260615.97328329,0.00019,2]
[419032382,1774788648676,-5306.5148283,0.00019,2]
[419032383,1774788648687,-1257.42635663,0.00019,2]
[419032395,1774789280543,-155.09214976,0.0001,2]
[419032396,1774789347047,-155.09214976,0.00013699,2]
[419032397,1774789538445,-388.58423484,0.00013699,2]
[419032398,1774789538653,-289.03631044,0.00013699,2]
[419032399,1774789566653,-221.9846678,0.00035227,30]
[419032400,1774789566681,-3000.0,0.00035227,120]
[419032401,1774789566708,-500.0,0.00035227,120]
[419032402,1774789566736,-154.51625,0.00035227,60]
[419032403,1774789566765,-3026.0,0.00035227,120]
[419032404,1774789566794,-508.88,0.00035227,120]
[419032405,1774789566823,-10401.0,0.00035227,30]
[419032406,1774789566849,-1292.60382823,0.00035227,120]
[419032407,1774789566877,-1027.02374646,0.00035227,31]
[419032408,1774789566905,-280.51989564,0.00035227,30]
[419032409,1774789566931,-1738.03347216,0.00035227,120]
[419032410,1774789566959,-827.24259207,0.00035227,30]
[419032411,1774789566985,-918.82080056,0.00035227,120]
[419032412,1774789567013,-243.03036473,0.00035227,120]
[419032413,1774789567039,-1747.39316635,0.00035227,60]
[419032414,1774789567065,-265.98465594,0.00035227,66]
[419032415,1774789567093,-188.71801294,0.00035227,120]
[419032416,1774789567119,-1778.06392879,0.00035227,60]
[419032417,1774789567146,-194.97727177,0.00035227,120]
[419032418,1774789567172,-215.11185743,0.00035227,30]
[419032419,1774789567198,-726.18800115,0.00035227,120]
[419032420,1774789567224,-612.39304562,0.00035227,30]
[419032421,1774789567250,-200.0,0.00035227,120]
[419032422,1774789567409,-13741.6977048,0.00035227,30]
[419032423,1774789567437,-712.73628492,0.00035227,120]
[419032424,1774789567464,-1059.58896767,0.00035227,30]
[419032425,1774789567491,-350.52649806,0.00035227,60]
[419032426,1774789567518,-216.67644122,0.00035227,120]
[419032427,1774789567547,-303.63037882,0.00035227,60]
[419032428,1774789567575,-230.69762765,0.00035227,30]
[419032429,1774789567608,-1104.77764055,0.00035227,120]
[419032430,1774789567636,-7574.03570047,0.00035227,30]
[419032431,1774789567668,-715.13535835,0.00035227,30]
[419032432,1774789567693,-10643.44767701,0.00035227,30]
[419032433,1774789567719,-784.61627059,0.00035227,120]
[419032434,1774789567745,-9811.93331669,0.00035227,30]
[419032435,1774789567771,-199.999998,0.00035227,30]
[419032436,1774789567800,-228.26932125,0.00035227,30]
[419032437,1774789567826,-22577.72743664,0.00035227,30]
[419032438,1774789567853,-8714.61617979,0.00035227,30]
[419032439,1774789567878,-23695.98237988,0.00035227,30]
[419032440,1774789567905,-238.91044298,0.00035227,30]
[419032441,1774789567934,-2004.28444898,0.00035227,30]
[419032442,1774789567961,-827.40101586,0.00035227,120]
[419032443,1774789567988,-6221.83237714,0.00035227,120]
[419032444,1774789568016,-710.559,0.00035227,120]
[419032445,1774789568043,-5000.0,0.00035227,30]
[419032446,1774789568070,-19000.0,0.00035227,30]
[419032447,1774789568097,-548.3373,0.00035227,120]
[419032448,1774789568124,-11883.85693418,0.00035227,45]
[419032449,1774789568151,-6243.59257766,0.00035227,30]
[419032450,1774789568178,-223.0,0.00035227,120]
[419032451,1774789568205,-187.79201049,0.00035227,120]
[419032452,1774789568231,-171.86973577,0.00035227,30]
[419032453,1774789568261,-171.22548283,0.00035227,120]
[419032454,1774789568288,-156.09560937,0.00035227,120]
[419032455,1774789568314,-1989.13,0.00035227,120]
[419032456,1774789568340,-203636.09457573,0.00035227,120]
[419032457,1774789568366,-14500.0,0.00035227,30]
[419032458,1774789568393,-210.0,0.00035227,120]
[419032459,1774789568419,-1428.91203597,0.00035227,30]
[419032460,1774789568446,-154.72190936,0.00035227,120]
[419032461,1774789568474,-194.99977778,0.00035227,120]
[419032462,1774789568503,-178.6114212,0.00035227,120]
[419032463,1774789568530,-194.99977778,0.00035227,120]
[419032464,1774789568557,-194.99977778,0.00035227,120]
[419032465,1774789568585,-178.6114212,0.00035227,120]
[419032466,1774789568613,-154.72190936,0.00035227,120]
[419032467,1774789568643,-194.99977778,0.00035227,120]
[419032468,1774789568670,-194.99977778,0.00035227,120]
[419032469,1774789568697,-154.72190936,0.00035227,120]
[419032470,1774789568723,-194.99977778,0.00035227,120]
[419032471,1774789568750,-194.99977778,0.00035227,120]
[419032472,1774789568777,-194.99977778,0.00035227,120]
[419032473,1774789568804,-154.72190936,0.00035227,120]
[419032474,1774789568832,-154.72190936,0.00035227,120]
[419032475,1774789568859,-154.72190936,0.00035227,120]
[419032476,1774789568886,-154.72190936,0.00035227,120]
[419032477,1774789568915,-154.72190939,0.00035227,120]
[419032478,1774789568946,-178.6114212,0.00035227,120]
[419032479,1774789568975,-1383.36840114,0.00035227,120]
[419032480,1774789569085,-150.77917332,0.00035227,120]
[419032481,1774789569113,-194.24477556,0.00035227,120]
[419032482,1774789569141,-150.77917332,0.00035227,120]
[419032483,1774789569169,-150.77917332,0.00035227,120]
[419032484,1774789569196,-150.77917332,0.00035227,120]
[419032485,1774789569224,-150.77917332,0.00035227,120]